bitfinex-derivatives/quotes_ETHF0:USTF0_20250403
["timestamp","ask_amount","ask_price","bid_price","bid_amount"]
[1743692906041,1.53812733,1759.3,1759.0,3.9291]
[1743692906241,1.13726,1759.1,1759.0,3.9291]
[1743692906745,2.67416,1759.1,1759.0,3.9291]
[1743692907041,5.17416,1759.1,1759.0,3.90351644]
[1743692907336,1.5369,1759.1,1759.0,1.13732]
[1743692908342,0.00852733,1759.3,1759.2,1.13719]
[1743692908543,1.52492733,1759.3,1759.2,1.13719]
[1743692908739,0.00852733,1759.3,1759.2,1.13719]
[1743692909637,0.00852733,1759.3,1759.2,12.66899]
[1743692910945,1.5164,1759.5,1759.4,1.13706]
[1743692911845,4.7242,1759.5,1759.2,5.824]
[1743692912047,1.13713,1759.3,1759.2,6.96115]
[1743692912243,5.86126,1759.5,1759.4,1.13706]
[1743692912443,5.8612,1759.5,1759.4,1.13706]
[1743692912745,4.7242,1759.5,1759.3,1.13712]
[1743692912950,4.7242,1759.5,1759.1,1.4533]
[1743692913149,1.13717,1759.3,1758.9,9.39221]
[1743692913346,4.7242,1759.5,1759.3,1.13708]
[1743692913948,5.86122,1759.5,1759.1,2.84311]
[1743692914145,1.13707,1759.4,1759.3,1.1371]
[1743692914333,1.5379,1759.4,1759.0,4.6611]
[1743692914542,2.67501,1759.4,1759.2,1.13715]
[1743692914738,1.5379,1759.4,1759.3,1.13713]
[1743692914940,3.2078,1759.5,1759.4,1.13706]
[1743692914941,1.5379,1759.5,1759.4,1.13706]
[1743692915950,3.2078,1759.7,1759.3,4.31501]
[1743692916148,1.5379,1759.6,1759.5,1.13695]
[1743692917944,1.137,1759.5,1759.4,2.60933]
[1743692918143,1.5379,1759.6,1759.5,1.137]
[1743692918846,2.67484,1759.6,1759.5,1.137]
[1743692919042,1.5379,1759.6,1759.4,1.13705]
[1743692919245,1.13708,1759.4,1759.2,6.96116]
[1743692919446,2.58813,1759.3,1759.2,5.824]
[1743692919647,1.451,1759.3,1759.1,1.13725]
[1743692919954,4.571,1759.4,1759.3,1.13713]
[1743692920449,2.58418,1759.4,1759.2,1.4167]
[1743692920652,1.13713,1759.3,1759.2,1.4167]
[1743692920846,2.58422,1759.4,1759.2,2.55389]
[1743692921247,1.4471,1759.4,1759.2,2.55389]
[1743692921451,2.5842,1759.4,1759.2,1.4167]
[1743692921747,1.13713,1759.3,1759.2,1.4167]
[1743692921946,1.13721,1759.2,1759.0,1.13727]
[1743692922146,1.13726,1759.1,1759.0,1.4167]
[1743692922343,1.13732,1759.0,1758.9,6.5488]
[1743692922548,2.58442,1759.0,1758.9,5.824]
[1743692923049,1.4471,1759.0,1758.9,6.96139]
[1743692923254,3.2078,1759.1,1759.0,1.13732]
[1743692923451,1.4626,1759.3,1759.2,1.13719]
[1743692923653,0.6964,1759.7,1759.3,1.13713]
[1743692923857,1.13705,1759.5,1759.1,8.66704]
[1743692924057,6.0336,1759.6,1759.5,1.137]
[1743692924357,2.59954,1759.6,1759.5,1.137]
[1743692924551,2.59954,1759.6,1759.5,41.937]
[1743692925353,3.2078,1759.7,1759.6,1.13694]
[1743692925551,1.4626,1759.8,1759.7,1.13687]
[1743692925958,2.59941,1759.8,1759.7,1.13687]
[1743692926654,1.4626,1759.8,1759.7,1.13687]
[1743692927056,3.2078,1760.0,1759.9,1.13674]
[1743692927264,4.6767,1760.0,1759.9,1.13674]
[1743692927461,3.2078,1760.0,1759.9,1.13674]
[1743692927761,3.2078,1760.0,1759.9,9.46074]
[1743692928351,3.2078,1760.0,1759.9,11.65604]
[1743692928553,1.13657,1760.2,1760.0,1.13665]
[1743692928753,1.13657,1760.2,1760.1,1.452]
[1743692928963,1.13674,1759.9,1759.8,3.9526]
[1743692929156,4.31037,1760.2,1759.7,2.58882]
[1743692929157,4.31029,1760.2,1759.7,2.58882]
[1743692929355,1.13671,1760.0,1759.8,1.13678]
[1743692929558,1.13664,1760.1,1759.9,2.52581]
[1743692929958,1.4689,1760.2,1760.0,1.13668]
[1743692930158,2.6055,1760.2,1760.1,1.3891]
[1743692930854,1.4689,1760.2,1760.1,2.52571]
[1743692931053,1.4285,1760.4,1760.1,1.3891]
[1743692931256,1.4285,1760.4,1760.1,7.2131]
[1743692931456,1.13655,1760.2,1760.1,7.2131]
[1743692932264,4.26959,1760.4,1760.1,11.55748]
[1743692932265,1.13653,1760.3,1760.1,11.55748]
[1743692932459,1.13655,1760.2,1760.1,10.4209]
[1743692932966,1.13655,1760.2,1760.1,11.55751]
[1743692933267,1.13655,1760.2,1760.1,10.4209]
[1743692933561,1.1365,1760.3,1760.2,1.13652]
[1743692933762,2.56846,1760.4,1760.2,2.5594]
[1743692933961,2.56846,1760.4,1760.2,1.4229]
[1743692934159,2.84057,1760.7,1760.3,1.13643]
[1743692934363,1.1364,1760.5,1760.4,1.4229]
[1743692934664,1.13635,1760.5,1760.4,2.55929]
[1743692934862,1.13631,1760.6,1760.5,1.13635]
[1743692935063,1.13629,1760.6,1760.4,2.55928]
[1743692935261,1.13629,1760.6,1760.5,1.13635]
[1743692935461,1.13629,1760.6,1760.5,1.4309]
[1743692935863,1.13642,1760.4,1760.1,10.5114]
[1743692936061,1.13642,1760.4,1760.3,3.2078]
[1743692936256,1.13642,1760.4,1760.2,2.56739]
[1743692936468,1.1364,1760.5,1760.3,4.34428]
[1743692936662,1.13642,1760.4,1760.3,3.2078]
[1743692936862,1.13642,1760.4,1760.2,1.4309]
[1743692937067,1.13642,1760.4,1760.2,2.5674]
[1743692937370,1.13648,1760.3,1760.1,8.44019]
[1743692937659,2.55158,1760.3,1760.1,2.61619]
[1743692937853,2.55158,1760.3,1760.2,1.13655]
[1743692938060,2.55158,1760.3,1760.1,2.61616]
[1743692938260,2.55158,1760.3,1760.1,1.4796]
[1743692938764,1.4151,1760.3,1760.2,1.13655]
[1743692938962,1.489,1760.5,1760.2,4.31914]
[1743692939164,1.489,1760.5,1760.4,1.13642]
[1743692939568,2.62535,1760.5,1760.4,2.61422]
[1743692939767,1.489,1760.5,1760.4,2.61422]
[1743692939965,1.489,1760.5,1760.3,3.2078]
[1743692940164,2.84105,1760.4,1760.0,5.824]
[1743692940466,2.84138,1760.2,1759.7,1.83905]
[1743692940662,6.057,1760.1,1759.8,1.1368]
[1743692940861,6.057,1760.1,1759.9,1.1367]
[1743692941057,7.19365,1760.1,1759.9,1.13673]
[1743692941275,1.13674,1759.9,1759.8,1.13678]
[1743692941566,1.489,1760.1,1760.0,1.13668]
[1743692941959,1.489,1760.1,1759.9,4.6446]
[1743692942166,2.62566,1760.1,1759.9,2.5735]
[1743692942361,2.62566,1760.1,1759.7,0.7022]
[1743692942362,1.13681,1759.8,1759.7,0.7022]
[1743692942668,1.13687,1759.7,1759.6,0.00852733]
[1743692942864,1.1367,1760.0,1759.6,5.83252733]
[1743692943065,0.7603,1760.3,1759.7,10.10293]
[1743692943271,1.433,1760.2,1759.8,0.7038]
[1743692943771,1.13681,1759.8,1759.7,3.2078]
[1743692944564,1.433,1760.0,1759.7,3.2078]
[1743692944764,1.433,1760.0,1759.7,4.6024]
[1743692944972,2.5697,1760.0,1759.7,5.73921]
[1743692945178,1.13674,1759.9,1759.7,5.73921]
[1743692945468,1.3871,1759.9,1759.7,4.6024]
[1743692945675,1.3871,1759.9,1759.7,5.73922]
[1743692945870,1.13681,1759.8,1759.7,3.2078]
[1743692946067,1.13687,1759.7,1759.6,3.21632733]
[1743692946368,2.52397,1759.7,1759.6,3.21632733]
[1743692946574,2.52397,1759.7,1759.6,0.00852733]
[1743692947274,5.02397,1759.7,1759.6,0.00852733]
[1743692947460,5.02397,1759.7,1759.5,0.17312]
[1743692947461,1.13694,1759.6,1759.5,0.17312]
[1743692947661,5.3673,1759.6,1758.9,46.624]
[1743692947867,1.13732,1759.0,1758.9,40.8]
[1743692948268,0.7495,1759.6,1758.9,46.14344]
[1743692948471,1.41,1759.3,1759.2,4.34499]
[1743692948672,0.00852733,1759.4,1759.3,1.13713]
[1743692948970,0.00852733,1759.4,1759.3,2.66163]
[1743692949365,1.14558733,1759.4,1759.3,1.5245]
[1743692949566,2.55558733,1759.4,1759.3,1.5245]
[1743692949777,1.13718,1759.3,1759.1,0.00852733]
[1743692950075,1.41,1759.3,1759.1,1.53302733]
[1743692950271,0.00852733,1759.4,1759.3,1.13713]
[1743692950476,1.13714,1759.3,1759.1,2.67025733]
[1743692950673,1.4093,1759.2,1759.1,1.53302733]
[1743692950973,0.00852733,1759.4,1759.3,1.13713]
[1743692951175,0.00852733,1759.4,1759.3,8.91393]
[1743692951378,0.00852733,1759.4,1759.3,5.75573]
[1743692951677,0.00852733,1759.4,1759.3,46.55573]
[1743692952075,1.41782733,1759.4,1759.3,46.55573]
[1743692952267,2.55488733,1759.4,1759.3,40.8]
[1743692952782,0.00852733,1759.4,1759.3,47.64493]
[1743692953867,1.14558733,1759.4,1759.3,40.8]
[1743692954467,2.67408733,1759.4,1759.3,40.8]
[1743692954877,1.53702733,1759.4,1759.3,45.14493]
[1743692955071,0.00852733,1759.4,1759.3,47.64493]
[1743692955270,0.00852733,1759.4,1759.3,49.84313]
[1743692957772,0.00852733,1759.4,1759.3,55.66713]
[1743692959381,1.14558733,1759.4,1759.3,50.96893]
[1743692960073,1.14558733,1759.4,1759.3,47.76113]
[1743692960074,1.53122733,1759.4,1759.3,47.76113]
[1743692960275,2.66828733,1759.4,1759.3,47.76113]
[1743692960779,1.53122733,1759.4,1759.3,47.76113]
[1743692960975,2.66828733,1759.4,1759.3,50.96893]
[1743692961180,2.66828733,1759.4,1759.3,49.8318]
[1743692961480,2.66828733,1759.4,1759.3,47.76113]
[1743692961678,2.66828733,1759.4,1759.3,5.824]
[1743692961880,1.53122733,1759.4,1759.1,4.35354733]
[1743692962275,1.53122733,1759.4,1759.2,40.8]
[1743692962579,1.13719,1759.2,1759.1,0.00852733]
[1743692963080,2.66349,1759.2,1759.1,0.00852733]
[1743692963681,5.16349,1759.2,1759.1,0.00852733]
[1743692963877,1.13761,1758.6,1758.4,1.13768]
[1743692964080,4.569,1758.8,1758.7,1.13752]
[1743692964278,4.569,1758.8,1758.6,1.13753]
[1743692964279,5.70645,1758.8,1758.6,1.13753]
[1743692964480,4.569,1758.8,1758.5,43.0939]
[1743692964783,5.70646,1758.8,1758.7,1.13752]
[1743692965077,0.7624,1759.0,1758.9,1.13739]
[1743692965279,1.89972,1759.0,1758.9,1.13739]
[1743692965680,1.89972,1759.0,1758.7,3.2078]
[1743692965681,0.7624,1759.0,1758.7,3.2078]
[1743692965880,3.60577,1759.0,1758.5,44.78132733]
[1743692966076,1.89977,1759.0,1758.6,2.84396]
[1743692966280,0.7624,1759.0,1758.9,1.13739]
[1743692966778,1.89977,1759.0,1758.8,1.1374]
[1743692966978,1.4747,1758.9,1758.8,1.1374]
[1743692967182,4.34496,1759.3,1758.8,2.84352]
[1743692967487,1.14564733,1759.4,1759.2,1.13716]
[1743692967784,1.13713,1759.3,1759.2,1.13716]
[1743692967989,0.00852733,1759.4,1759.3,1.13713]
[1743692968481,0.00852733,1759.4,1759.2,1.13717]
[1743692968794,1.14564733,1759.4,1759.2,1.13717]
[1743692968978,2.57753,1759.3,1759.1,4.615]
[1743692969180,1.13719,1759.2,1759.1,0.5293]
[1743692969375,2.57759,1759.2,1759.1,0.5293]
[1743692969777,8.28539,1759.2,1759.1,0.5293]
[1743692970182,2.57759,1759.2,1759.1,0.5293]
[1743692970877,8.28539,1759.2,1759.1,0.5293]
[1743692972582,1.13745,1758.8,1758.7,1.13751]
[1743692972787,1.13745,1758.8,1758.5,51.24752733]
[1743692973187,1.4809,1758.7,1758.6,1.13758]
[1743692973382,2.61846,1758.7,1758.5,51.24752733]
[1743692973686,1.13758,1758.6,1758.5,50.97794733]
[1743692973896,2.61848,1758.6,1758.5,0.00852733]
[1743692974094,2.84364,1758.8,1758.5,0.00852733]
[1743692974095,1.13751,1758.8,1758.6,1.13753]
[1743692974281,1.4809,1758.8,1758.6,1.3885]
[1743692974489,1.13752,1758.7,1758.6,1.3885]
[1743692974687,1.13752,1758.7,1758.6,2.52608]
[1743692974992,2.6184,1758.8,1758.6,2.52608]
[1743692975190,1.4809,1758.8,1758.6,2.52604]
[1743692975387,1.13752,1758.7,1758.6,2.52604]
[1743692975787,1.13758,1758.6,1758.5,40.80852733]
[1743692975982,2.57628,1758.6,1758.5,40.80852733]
[1743692976696,3.2078,1759.0,1758.6,2.84396]
[1743692976897,1.4387,1758.9,1758.8,1.13741]
[1743692977193,1.13745,1758.8,1758.7,2.60356]
[1743692977693,1.13745,1758.8,1758.7,1.13746]
[1743692977884,1.13752,1758.7,1758.6,5.4333]
[1743692978090,1.13752,1758.7,1758.6,2.2255]
[1743692978396,1.13748,1758.8,1758.7,1.13751]
[1743692978694,2.65948,1758.8,1758.6,6.57083]
[1743692978889,1.522,1758.8,1758.6,5.4333]
[1743692979099,2.6595,1758.8,1758.7,1.13752]
[1743692979395,1.13752,1758.7,1758.6,6.57082]
[1743692979586,2.65952,1758.7,1758.6,6.57082]
[1743692979789,1.522,1758.7,1758.6,6.57082]
[1743692980189,1.522,1758.8,1758.7,1.13747]
[1743692980396,2.65945,1758.8,1758.7,2.64767]
[1743692980696,2.65951,1758.8,1758.6,5.06063]
[1743692981001,1.13752,1758.7,1758.6,6.46753]
[1743692981189,2.57812,1758.7,1758.6,6.46753]
[1743692981389,2.57803,1758.9,1758.8,1.13745]
[1743692981898,2.57804,1758.9,1758.6,4.6147]
[1743692982098,2.57804,1758.9,1758.8,1.13745]
[1743692982293,1.4406,1758.9,1758.6,4.6147]
[1743692982593,1.4406,1758.9,1758.6,1.4069]
[1743692982793,1.4406,1758.9,1758.8,1.13745]
[1743692983292,1.4406,1758.9,1758.7,0.7058]
[1743692983497,1.13745,1758.8,1758.7,0.7058]
[1743692983885,22.59967469,1759.4,1758.9,2.84348]
[1743692984086,2.59209,1759.2,1759.1,3.2078]
[1743692984495,1.4549,1759.2,1758.9,9.0318]
[1743692984891,1.4549,1759.2,1758.9,9.5613]
[1743692985094,1.4549,1759.2,1758.9,13.12347]
[1743692985295,1.4549,1759.2,1759.1,1.13726]
[1743692985495,22.59967469,1759.4,1759.3,1.13713]
[1743692985687,1.13715,1759.3,1759.2,1.13717]
[1743692985893,2.59205,1759.3,1759.2,1.13717]
[1743692986096,2.59205,1759.3,1759.2,1.13719]
[1743692986296,1.4549,1759.3,1759.1,1.13721]
[1743692986598,1.13722,1759.2,1759.1,1.13722]
[1743692986993,1.13728,1759.1,1759.0,1.13729]
[1743692987191,1.435,1759.1,1758.9,7.0722]
[1743692987397,1.435,1759.1,1758.9,0.5295]
[1743692987596,1.13732,1759.0,1758.9,1.66685]
[1743692987793,1.13732,1759.0,1758.9,0.5295]
[1743692988397,4.6428,1759.1,1758.9,0.5295]
[1743692988604,1.435,1759.1,1758.9,0.5295]
[1743692988800,1.13732,1759.0,1758.9,1.66686]
[1743692989102,1.13732,1759.0,1758.9,0.5295]
[1743692989403,1.435,1759.1,1759.0,1.13732]
[1743692989900,1.13732,1759.0,1758.9,1.13734]
[1743692990101,4.27817,1759.1,1758.7,1.84328]
[1743692990301,1.13745,1758.8,1758.7,1.84328]
[1743692990501,1.427,1758.9,1758.7,1.19284253]
[1743692990696,1.427,1758.9,1758.8,1.62447156]
[1743692990896,8.90179733,1759.4,1758.8,3.69482156]
[1743692991101,2.56436,1759.0,1758.9,1.13739]
[1743692991297,1.427,1759.0,1758.8,3.2078]
[1743692991504,1.427,1759.0,1758.9,1.62456052]
[1743692991805,1.13726,1759.2,1758.9,0.48717052]
[1743692992104,1.427,1759.3,1759.2,1.13719]
[1743692992301,0.00852733,1759.4,1759.3,1.13713]
[1743692992604,1.14561733,1759.4,1759.3,1.13713]
[1743692993304,0.00852733,1759.4,1759.3,1.62423564]
[1743692993601,0.00852733,1759.4,1759.3,7.44823564]
[1743692993805,0.00852733,1759.4,1759.3,9.46113]
[1743692993997,22.96225736,1759.7,1759.6,1.13694]
[1743692994299,21.45405736,1759.7,1759.6,1.62379252]
[1743692994497,1.13684,1759.8,1759.7,1.13687]
[1743692994700,22.96225736,1759.9,1759.5,6.0503]
[1743692995009,1.13683,1759.8,1759.7,1.13683]
[1743692995205,1.13683,1759.8,1759.7,4.34463]
[1743692995403,24.10757469,1759.9,1759.8,1.13681]
[1743692995702,21.46258469,1759.9,1759.8,1.13681]
[1743692995901,21.46258469,1759.9,1759.8,5.61844438]
[1743692996105,21.46258469,1759.9,1759.8,46.41844438]
[1743692996404,0.00852733,1759.9,1759.8,46.41844438]
[1743692996998,6.8101,1760.7,1759.9,2.84186]
[1743692997194,4.568,1760.7,1760.4,1.13642]
[1743692997409,1.13629,1760.6,1760.5,2.60485]
[1743692998107,1.13629,1760.6,1760.5,1.4685]
[1743692998495,1.13626,1760.7,1760.5,1.4685]
[1743692998702,1.13613,1760.9,1760.5,8.25668]
[1743692998904,1.13613,1760.9,1760.8,1.13616]
[1743692999105,1.13614,1760.9,1760.8,1.13616]
[1743692999300,2.62556,1761.0,1760.9,1.1361]
[1743692999504,2.62553,1761.0,1760.9,1.1361]
[1743692999712,1.88188,1761.3,1760.8,1.3876]
[1743692999904,1.4006,1761.2,1761.1,1.13597]
[1743693000103,1.4006,1761.2,1761.1,2.52357]
[1743693000610,1.4006,1761.2,1761.0,4.34381]
[1743693000804,2.53653,1761.2,1761.0,5.73141]
[1743693001105,1.1361,1760.9,1760.8,9.0318]
[1743693001310,1.13606,1761.0,1760.8,1.13613]
[1743693001507,1.4006,1760.9,1760.8,1.13613]
[1743693001709,3.2078,1761.4,1761.2,1.13587]
[1743693002010,1.13586,1761.3,1761.2,1.1359]
[1743693002318,1.4006,1761.4,1761.3,1.13584]
[1743693002704,6.40712,1761.7,1761.3,6.0474]
[1743693003012,2.60964,1761.6,1761.4,43.33982]
[1743693003208,2.60966,1761.6,1761.4,43.33982]
[1743693003408,1.474,1761.6,1761.4,43.33982]
[1743693003612,2.60968,1761.6,1761.4,43.33982]
[1743693004015,1.474,1761.6,1761.3,0.53772733]
[1743693004411,1.13577,1761.4,1761.3,0.53772733]
[1743693004917,3.63577,1761.4,1761.3,0.53772733]
[1743693005309,2.55807,1761.4,1761.3,0.53772733]
[1743693005814,1.4223,1761.4,1761.3,0.53772733]
[1743693006008,1.4223,1761.4,1761.3,1.67356733]
[1743693006711,2.55807,1761.4,1761.3,0.53772733]
[1743693006914,5.76587,1761.4,1761.3,0.53772733]
[1743693007712,1.13622,1760.7,1760.6,0.7288]
[1743693007918,2.84012,1761.0,1760.6,0.7288]
[1743693008116,1.13621,1760.8,1760.6,1.86507]
[1743693008310,1.13622,1760.7,1760.6,0.7288]
[1743693008616,2.84012,1761.0,1760.6,0.7288]
[1743693008812,1.13622,1760.7,1760.6,0.7288]
[1743693009113,0.00852733,1761.0,1760.9,1.1361]
[1743693009812,3.2078,1761.5,1760.9,1.1361]
[1743693009813,4.563,1761.7,1761.3,1.13579]
[1743693010114,1.13564,1761.6,1761.3,3.2078]
[1743693010419,3.59552,1761.8,1761.4,43.42446]
[1743693010719,1.13564,1761.6,1761.4,42.2887]
[1743693010909,1.4821,1761.7,1761.4,42.2887]
[1743693011109,1.13571,1761.5,1761.4,40.8]
[1743693012014,1.4821,1761.7,1761.4,40.8]
[1743693012320,1.13571,1761.5,1761.4,42.3351]
[1743693012819,1.13571,1761.5,1761.4,40.8]
[1743693014219,3.2078,1762.1,1761.7,1.13553]
[1743693014415,1.13552,1761.8,1761.5,3.2078]
[1743693014711,1.13543,1762.0,1761.7,3.2078]
[1743693014913,1.4088,1762.0,1761.9,1.13545]
[1743693015118,1.13521,1762.3,1761.9,6.04643]
[1743693015320,1.4088,1762.3,1762.2,1.13526]
[1743693015517,1.4088,1762.4,1762.3,1.13517]
[1743693015717,2.54393,1762.4,1762.2,1.1352]
[1743693015921,1.13519,1762.3,1762.2,44.0078]
[1743693016126,1.4088,1762.3,1762.2,44.0078]
[1743693016518,2.54399,1762.3,1762.2,44.0078]
[1743693016816,1.13515,1762.4,1762.2,45.143]
[1743693017016,1.4088,1762.5,1762.4,1.13513]
[1743693017226,3.2078,1762.8,1762.4,4.34293]
[1743693017424,1.135,1762.6,1762.5,1.5111]
[1743693017621,1.4959,1762.7,1762.4,3.96812733]
[1743693017825,1.13506,1762.5,1762.4,3.21632733]
[1743693018020,1.4959,1762.7,1762.6,1.135]
[1743693018326,1.4959,1762.7,1762.6,4.3428]
[1743693018918,1.4959,1762.7,1762.6,5.8539]
[1743693019118,1.4959,1762.7,1762.6,3.2078]
[1743693019322,1.4959,1762.7,1762.6,4.3428]
[1743693019628,2.63084,1762.7,1762.6,3.2078]
[1743693020015,1.4959,1762.7,1762.6,4.3428]
[1743693020211,2.63084,1762.7,1762.6,3.2078]
[1743693020412,1.13506,1762.5,1762.4,0.00852733]
[1743693021024,1.5126,1762.5,1762.4,1.14365733]
[1743693021423,1.5126,1762.5,1762.4,2.59605733]
[1743693022125,1.5126,1762.5,1762.4,1.46092733]
[1743693022327,2.64766,1762.5,1762.4,1.46092733]
[1743693022720,2.64766,1762.5,1762.4,0.00852733]
[1743693023316,1.5126,1762.5,1762.4,0.00852733]
[1743693023526,2.64766,1762.5,1762.4,0.00852733]
[1743693030134,5.69393,1762.8,1762.6,1.13496]
[1743693030430,1.13506,1762.5,1762.4,0.00852733]
[1743693031331,4.37535,1762.7,1762.4,1.14361733]
[1743693031534,1.13506,1762.5,1762.4,0.00852733]
[1743693031922,4.34286,1762.5,1762.4,0.00852733]
[1743693032435,6.55986,1762.5,1762.4,0.00852733]
[1743693034226,3.35206,1762.5,1762.4,0.00852733]
[1743693034431,1.13539,1762.0,1761.9,44.0078]
[1743693034731,7.9248,1762.5,1761.9,44.0078]
[1743693034732,9.9818,1762.5,1761.9,44.0078]
[1743693034945,1.13539,1762.0,1761.9,40.8]
[1743693035431,1.522,1762.2,1761.9,40.8]
[1743693035638,1.13539,1762.0,1761.9,43.36645]
[1743693035839,1.13545,1761.9,1761.8,0.00852733]
[1743693036133,2.65125,1761.9,1761.8,0.00852733]
[1743693036540,8.35905,1761.9,1761.8,0.00852733]
[1743693036740,2.65125,1761.9,1761.8,0.00852733]
[1743693037237,2.65125,1761.9,1761.8,40.80852733]
[1743693037431,1.5158,1761.9,1761.8,41.94404733]
[1743693037638,0.00852733,1762.1,1761.8,44.01632733]
[1743693037837,0.00852733,1762.1,1761.9,2.56644]
[1743693038035,0.00852733,1762.1,1761.8,42.21552733]
[1743693038235,0.00852733,1762.1,1761.8,40.80852733]
[1743693038236,1.13545,1761.9,1761.8,40.80852733]
[1743693038433,6.75875733,1762.1,1761.8,40.80852733]
[1743693038434,7.20723,1762.0,1761.8,40.80852733]
[1743693038642,6.0718,1762.0,1761.9,1.13545]
[1743693038945,2.65119,1762.0,1761.9,1.4024]
[1743693039135,1.13545,1761.9,1761.8,40.80852733]
[1743693039439,2.67145,1761.9,1761.8,40.80852733]
[1743693040635,1.536,1761.9,1761.8,44.01632733]
[1743693040838,2.67145,1761.9,1761.8,40.80852733]
[1743693041431,1.536,1761.9,1761.8,40.80852733]
[1743693041637,2.67145,1761.9,1761.8,40.80852733]
[1743693042139,1.536,1761.9,1761.8,40.80852733]
[1743693042342,1.14387733,1762.1,1761.8,44.50165105]
[1743693042543,1.47022733,1762.1,1762.0,1.13539]
[1743693042844,2.60554733,1762.1,1761.9,3.38482]
[1743693043040,1.13539,1762.0,1761.9,2.2494]
[1743693043243,1.4617,1762.0,1761.9,3.38485]
[1743693043445,2.59709,1762.0,1761.9,2.2494]
[1743693044144,1.4617,1762.0,1761.9,2.2494]
[1743693044547,1.4617,1762.0,1761.9,3.38485]
[1743693044743,1.4617,1762.0,1761.9,3.87054474]
[1743693044943,2.59709,1762.0,1761.9,2.73505438]
[1743693045236,0.00852733,1762.1,1762.0,1.13539]
[1743693045442,0.00852733,1762.1,1762.0,2.56249]
[1743693045849,1.14384733,1762.1,1762.0,2.56249]
[1743693046147,1.14384733,1762.1,1762.0,1.4271]
[1743693047942,1.14384733,1762.1,1762.0,2.56249]
[1743693048142,0.00852733,1762.1,1762.0,2.56249]
[1743693048342,1.14384733,1762.1,1762.0,1.4271]
[1743693048545,0.00852733,1762.1,1762.0,2.56249]
[1743693048744,1.14384733,1762.1,1762.0,2.56249]
[1743693048947,0.00852733,1762.1,1762.0,2.56249]
[1743693049155,1.14384733,1762.1,1762.0,2.56249]
[1743693049753,1.13539,1762.0,1761.9,3.2078]
[1743693049950,2.63399,1762.0,1761.9,3.2078]
[1743693050145,0.00852733,1762.1,1762.0,1.13539]
[1743693050346,0.00852733,1762.1,1762.0,2.57079]
[1743693050551,0.00852733,1762.1,1762.0,3.32759]
[1743693050752,0.00852733,1762.1,1762.0,2.1922]
[1743693050753,1.14384733,1762.1,1762.0,2.1922]
[1743693050948,1.14384733,1762.1,1762.0,3.32759]
[1743693051153,0.00852733,1762.1,1762.0,2.1922]
[1743693051362,1.54072733,1762.1,1762.0,3.32759]
[1743693051856,1.54072733,1762.1,1762.0,44.12759]
[1743693052055,2.67604733,1762.1,1762.0,42.9922]
[1743693052458,2.67604733,1762.1,1761.9,3.2078]
[1743693052459,1.13539,1762.0,1761.9,3.2078]
[1743693052658,2.66759,1762.0,1761.9,3.2078]
[1743693053358,0.00852733,1762.1,1762.0,1.13539]
[1743693053562,1.13498,1762.7,1762.5,1.13502]
[1743693053760,2.54638,1762.7,1762.6,1.135]
[1743693053964,1.4114,1762.7,1762.6,41.935]
[1743693054165,1.13501,1762.6,1762.4,5.369]
[1743693054368,1.13503,1762.6,1762.4,6.50408]
[1743693054555,1.13503,1762.6,1762.4,3.29628]
[1743693054756,2.54639,1762.7,1762.6,1.135]
[1743693055070,2.54639,1762.7,1762.5,1.13501]
[1743693055367,1.135,1762.6,1762.5,1.4325]
[1743693055568,2.5464,1762.6,1762.5,1.4325]
[1743693055964,1.13491,1762.8,1762.5,1.4325]
[1743693056163,1.13491,1762.8,1762.6,1.13496]
[1743693056164,1.4114,1762.8,1762.6,1.13496]
[1743693056465,1.135,1762.6,1762.5,1.4325]
[1743693056972,1.4114,1762.8,1762.5,2.56756]
[1743693057160,1.4114,1762.8,1762.6,1.135]
[1743693057359,1.4114,1762.8,1762.5,2.56755]
[1743693057564,1.13495,1762.7,1762.6,1.135]
[1743693057761,1.8427,1763.0,1762.6,3.2078]
[1743693058069,1.13482,1762.9,1762.7,1.4028]
[1743693058262,7.93429,1763.0,1762.7,1.4028]
[1743693058463,1.5376,1763.0,1762.9,4.34261]
[1743693058667,1.13481,1762.9,1762.8,0.697]
[1743693059259,1.13487,1762.8,1762.7,0.00852733]
[1743693059667,1.13487,1762.8,1762.7,2.54626733]
[1743693059868,2.2718,1763.0,1762.7,1.41132733]
[1743693060067,1.13487,1762.8,1762.7,1.41132733]
[1743693060365,1.13483,1762.9,1762.7,2.54622733]
[1743693060571,1.5305,1762.9,1762.8,4.34267]
[1743693060774,1.13477,1763.0,1762.8,3.916]
[1743693061067,1.13477,1763.0,1762.9,1.4459]
[1743693061666,1.5305,1763.1,1762.9,1.4459]
[1743693061862,2.66523,1763.1,1762.9,2.58068]
[1743693062073,3.2078,1763.4,1763.0,4.34254]
[1743693062272,4.34212,1763.7,1763.5,1.13436]
[1743693062465,1.5305,1763.7,1763.3,2.1541]
[1743693062664,2.66483,1763.7,1763.4,4.34224]
[1743693062866,1.5305,1763.7,1763.6,1.13436]
[1743693063066,4.34197,1763.9,1763.7,1.13425]
[1743693063267,4.6297,1763.9,1763.7,2.61555]
[1743693063468,1.4219,1763.9,1763.8,1.13423]
[1743693063779,4.34182,1764.2,1763.9,1.13414]
[1743693063976,4.6297,1764.2,1764.1,1.13404]
[1743693064272,77.01963257,1764.5,1764.1,1.134]
[1743693064476,1.4219,1764.4,1764.2,2.61523]
[1743693064672,1.4219,1764.4,1764.2,5.82302]
[1743693064869,1.4219,1764.4,1764.2,4.6891]
[1743693065171,23.59946309,1764.7,1764.3,1.13389]
[1743693065363,23.59946309,1764.7,1764.5,1.13373]